Cogmind - Beta 16 @@@ ROGUE MODE // 2025.10.30 @ 00:20:09 Player: Naughtyusername Result: Destroyed by as-60683 with Assembled Maul Performance ------------- Evolutions (0) 0 Regions Visited (2) 400 Robots Destroyed (36) 180 Value Destroyed (836) 836 Prototype IDs (3) 60 Alien Tech Used (0) 0 Bonus (0) 0 TOTAL SCORE: 1476 Bonus ------- None Cogmind --------- Core Integrity 0/250 Matter 294/300 Energy 100/100 System Corruption 5% Temperature Cool (0) Movement Treading (240) Ox1 Location -10/Mines Parts ------- > --- POWER (1) -------- (None) > --- PROPULSION (2) --- Light Treads Aluminum Leg > --- UTILITY (2) ------ Large Storage Unit Core Shielding > --- WEAPON (2) ------- Light Assault Rifle Light Assault Rifle > --- INVENTORY (15) --- Aluminum Leg Scrap Suit Improved Heat Sink Improved Terrain Scanner Seismic Detector Utility Shielding Thief Drone Bay Assault Rifle Datajack Mining Laser Peak State ------------ > --- POWER ------------ Light Nuclear Core > --- PROPULSION ------- Light Treads Aluminum Leg > --- UTILITY ---------- Large Storage Unit Core Shielding > --- WEAPON ----------- Light Assault Rifle Light Assault Rifle > --- INVENTORY -------- Aluminum Leg Scrap Suit Improved Heat Sink Improved Terrain Scanner Seismic Detector Utility Shielding Thief Drone Bay Assault Rifle Datajack Mining Laser [Rating: 11] Favorites ----------- Power Ion Engine Engine Ion Engine Power Core Light Nuclear Core Propulsion Light Treads Treads Light Treads Leg Aluminum Leg Utility Small Storage Unit Device Seismic Detector Storage Small Storage Unit Protection Utility Shielding Weapon Light Assault Rifle Ballistic Gun Light Assault Rifle Build | -11 -10 -10 ------- Run | Yrd Mat Min Slots Evolved . | . . . Power . | . . . Propulsion . | . . . Utility . | . . . Weapon . | . . . Parts Attached 18 | 8 6 4 Power 3 | 1 2 . Engine 2 | 1 1 . Core 1 | . 1 . Reactor . | . . . Propulsion 4 | 2 1 1 Treads 3 | 2 1 . Leg 1 | . . 1 Wheel . | . . . Hover . | . . . Flight . | . . . Utility 7 | 3 1 3 Device 2 | 2 . . Storage 3 | 1 . 2 Processor . | . . . Hackware . | . . . Protection 2 | . 1 1 Artifact . | . . . Weapon 4 | 2 2 . Energy Gun . | . . . Energy Cannon . | . . . Ballistic Gun 4 | 2 2 . Ballistic Cannon . | . . . Launcher . | . . . Special Weapon . | . . . Impact Weapon . | . . . Slashing Weapon . | . . . Piercing Weapon . | . . . Special Melee Weapon . | . . . Unidentified Prototypes . | . . . Parts Lost 7 | . 5 2 Power 3 | . 2 1 Propulsion 2 | . 1 1 Utility . | . . . Weapon 2 | . 2 . Highest Loss Streak 2 | . 2 1 To Critical Strikes . | . . . Average Backups 5 | 1 4 8 Power . | . 1 . Propulsion . | . . . Utility 3 | . 2 4 Weapon . | . . 1 Tool/Special . | . . . Unused Backups 9 | 1 1 7 Power . | . . . Propulsion 2 | . 1 1 Utility 3 | . . 3 Weapon 3 | 1 . 2 Tool/Special 1 | . . 1 Average Slot Usage (%) 95 | . 91 99 Engine 6 | . 12 . Core 6 | . . 13 Treads 21 | . 27 14 Leg 6 | . . 13 Storage 14 | . 14 14 Protection 12 | . 10 14 Ballistic Gun 26 | . 24 28 Peak Build Rating 11 | 9 9 11 Average Rating 8 | 5 7 10 On Entrance 5 | . 7 9 Avg Prop Armor Cover (%) 8 | . . 8 Naked Turns . | . . . Heaviest Build 28 | 14 14 28 Greatest Support 40 | 40 40 20 Greatest Overweight (x) 2 | 2 . 1 Average Overweight (x) . | . . . Largest Inventory Capacity 15 | 8 8 15 Average Capacity 10 | 7 8 14 Most Carried 11 | 2 7 11 Average Carried 5 | 1 4 8 Final Capacity 15 | 8 8 15 Final Carried 11 | 2 5 11 Class Distribution -------------------- 100% | Mutant Dominant Class ---------------- Mutant | -10/Materials Mutant | -10/Mines Resources | -11 -10 -10 ----------- Run | Yrd Mat Min Matter Collected 703 | 440 208 55 Remotely . | . . . Salvage Created 1238 | 280 866 92 Parts 79 | 31 43 5 Haulers Intercepted 2 | . 2 . Recyclers Shooed 1 | . 1 . Parts Field Recycled . | . . . Retrieved Matter . | . . . Parts Self-Destructed . | . . . Prevented . | . . . Parts Restored . | . . . Kills | -11 -10 -10 ------- Run | Yrd Mat Min Combat Hostiles Destroyed 15 | . 13 2 Guns 15 | . 13 2 Classes Destroyed 6 | 3 3 . Worker 7 | 4 3 . Tunneler 8 | 8 . . Hauler 2 | . 2 . Recycler 3 | 1 2 . Watcher 1 | . 1 . Grunt 15 | . 13 2 Best Kill Streak 6 | 4 6 2 Combat Bots Only 3 | . 3 2 Max Kills in Single Turn 4 | 1 4 1 Gunslinging . | . . . Exploded . | . . . Melee . | . . . Uniques/NPCs Destroyed . | . . . Combat | -11 -10 -10 -------- Run | Yrd Mat Min Hostile Shots Fired 109 | . 84 25 Missed 28 | . 22 6 Hits 81 | . 62 19 Melee 4 | . . 4 Projectile 77 | . 62 15 Critical Strikes 1 | . 1 . Damage Taken 1136 | . 849 287 Core 269 | . 182 87 Absorbed by Shields . | . . . Redirected to Shielding 30 | . 19 11 Regen/Repaired (Parts) 21 | . 21 . Core Remaining (%) 100 | 100 . . Volleys Fired 111 | 40 58 13 Largest 2 | 2 2 2 Hottest 40 | 40 40 40 Shots Fired 206 | 80 100 26 Gun 206 | 80 100 26 Cannon . | . . . Launcher . | . . . Special . | . . . Kinetic 206 | 80 100 26 Thermal . | . . . Explosive . | . . . Electromagnetic . | . . . Robot Hit Streak 22 | 9 22 3 Robot Miss Streak 4 | 4 3 3 Penetration Max . | . . . Secondary Targets . | . . . Shots Hit Robots 130 | 45 72 13 Core Hits 74 | 17 48 9 Critical Kills 2 | 1 1 . Critical Parts Destroyed 2 | 2 . . Critical Strikes 4 | 3 1 . Destroy 4 | 3 1 . Melee Attacks . | . . . Impact . | . . . Slashing . | . . . Piercing . | . . . Sneak Attacks . | . . . Combat Hostiles . | . . . Follow-up Attacks . | . . . Damage Inflicted 2462 | 504 1812 146 Guns 1382 | 504 761 117 Cannons . | . . . Explosions 1044 | . 1044 . Melee . | . . . Ramming 36 | . 7 29 Kinetic 1382 | 504 761 117 Thermal 817 | . 817 . Explosive . | . . . Electromagnetic 227 | . 227 . Impact . | . . . Slashing . | . . . Piercing . | . . . Highest Corruption 5 | . . 5 Average Corruption 5 | . . 5 Corruption Purged . | . . . Corruption Blocked . | . . . Overload Shots . | . . . Overflow Damage 190 | . 190 . Projectiles . | . . . Explosions 190 | . 190 . Melee . | . . . Knockbacks . | . . . Impact . | . . . Kinetic . | . . . Secondary . | . . . Self-Inflicted Damage . | . . . Shots . | . . . Rammed 8 | . 2 6 Targets Rammed 8 | . 2 6 Kicked . | . . . Crushed . | . . . Highest Temperature 49 | . 34 49 Average Temperature 15 | . 9 29 Received Heat Transfer 579 | . 471 108 Siege Activations . | . . . Martial Activations . | . . . Shielding Activations . | . . . Robots Disrupted . | . . . Combat Hostiles . | . . . Robots Corrupted . | . . . Combat Hostiles . | . . . Parts Fried . | . . . Impact Corruptions . | . . . Robots Melted . | . . . Combat Hostiles . | . . . Parts Melted . | . . . Heat Transferred 500 | . 500 . Parts Sabotaged . | . . . Parts Stolen . | . . . Parts Stripped . | . . . Power Chain Reactions . | . . . Alert | -11 -10 -10 ------- Run | Yrd Mat Min Maximum Alert Level 1 | . 1 . Low Security (%) 61 | 100 13 100 Level 1 38 | . 86 . Level 2 . | . . . Level 3 . | . . . Level 4 . | . . . Level 5 . | . . . High Security . | . . . Max Security . | . . . Peak Influence 296 | 15 296 142 Initial 112 | . . 112 Average 109 | 1 224 23 Influence Increases 875 | 65 760 50 Destroy 0b10 Robot/C 300 | . 260 40 Destroy 0b10 Robot/NC 105 | 65 40 . Destroy Leader 76 | . 66 10 Successful Hack 57 | . 57 . Select Force Hacks 60 | . 60 . Disable Machine 240 | . 240 . Destroy Structure 37 | . 37 . Influence Decreases 875 | 65 472 338 Entered New Map 176 | . . 176 Time Decay 639 | 65 422 152 Lost Part 60 | . 50 10 Squads Dispatched 3 | . 3 . Investigation 2 | . 2 . Extermination . | . . . Reinforcement 1 | . 1 . Assault . | . . . Garrison . | . . . Intercept . | . . . Searches Triggered . | . . . Construction Impeded . | . . . Haulers Reinforced . | . . . Active Scanning Responses . | . . . Cargo Convoy Interrupts . | . . . Stealth | -11 -10 -10 --------- Run | Yrd Mat Min Distress Signals . | . . . Communications Jammed . | . . . Distress Signals . | . . . Times Spotted 20 | . 17 3 Peak Tracking Total 3 | . 3 2 Tactical Retreats . | . . . Traps | -11 -10 -10 ------- Run | Yrd Mat Min Traps Triggered 1 | . 1 . Indirectly . | . . . Trap Hack Attempts . | . . . Triggered . | . . . Disarmed . | . . . Reprogrammed . | . . . Reused . | . . . Traps Extracted . | . . . Installed . | . . . Triggered . | . . . Machines | -11 -10 -10 ---------- Run | Yrd Mat Min Machines Disabled 16 | . 16 . Max in Single Turn 12 | . 12 . Machines Repaired . | . . . Machines Dismantled . | . . . Machines Sabotaged . | . . . Overloaded Fab Kills . | . . . Hacking | -11 -10 -10 --------- Run | Yrd Mat Min Machines Accessed 11 | . 9 2 Terminals 7 | . 6 1 Fabricators . | . . . Repair Stations 1 | . 1 . Recycling Units 2 | . 2 . Scanalyzers . | . . . Garrison Access . | . . . Total Hacks 34 | . 31 3 Successful 21 | . 20 1 Failed 13 | . 11 2 Catastrophic 1 | . 1 . Database Lockouts . | . . . Manual 25 | . 23 2 Terminals 27 | . 25 2 Fabricators . | . . . Repair Stations 2 | . 2 . Recycling Units 4 | . 4 . Scanalyzers . | . . . Garrison Access . | . . . Terminal Hacks 8 | . 7 1 Robot Analysis 4 | . 4 . Prototype ID Bank 2 | . 2 . Open Door 1 | . . 1 Hauler Manifests 1 | . 1 . Fabricator Hacks . | . . . Repair Station Hacks 2 | . 2 . Scan Component 1 | . 1 . Repair 1 | . 1 . Recycling Unit Hacks 1 | . 1 . Retrieve Components 1 | . 1 . Scanalyzer . | . . . Garrison Access Hacks . | . . . Unauthorized Hacks 10 | . 10 . Terminals 8 | . 8 . Botnet 3 | . 3 . Skim 5 | . 5 . Fabricators . | . . . Repair Stations . | . . . Recycling Units 2 | . 2 . Tunnel 2 | . 2 . Scanalyzers . | . . . Garrison Access . | . . . Data Cores Recovered . | . . . Used . | . . . Hacking Detections 8 | . 7 1 Full Trace Events . | . . . Feedback Events . | . . . Feedback Blocked . | . . . Robot Schematics Acquired . | . . . Robots Built . | . . . Authchips . | . . . Time . | . . . Total Robot Build Rating . | . . . Part Schematics Acquired . | . . . Parts Built . | . . . Authchips . | . . . Time . | . . . Total Part Build Rating . | . . . Part Studies Acquired . | . . . Parts Repaired 1 | . 1 . Time 36 | . 36 . Parts Recycled . | . . . Recycled Matter . | . . . Retrieved Matter . | . . . Retrieved Components 10 | . 10 . Parts Scanalyzed . | . . . Part Schematics Acquired . | . . . Parts Damaged . | . . . Bothacking | -11 -10 -10 ------------ Run | Yrd Mat Min Used RIF Installer . | . . . Robots Hacked . | . . . Non-combat . | . . . Combat . | . . . Robot Hacks Applied . | . . . Relay Couplers Released . | . . . Fabnet Peak Effective % . | . . . Robots Rewired . | . . . Allies Hacked . | . . . Hacks Repelled . | . . . Allies | -11 -10 -10 -------- Run | Yrd Mat Min Total Allies 1 | . . 1 Largest Group 1 | . . 1 Highest-Rated Group 31 | . . 31 Highest-Rated Ally 31 | . . 31 Total Orders . | . . . Ally Attacks . | . . . Total Damage . | . . . Kills . | . . . Allies Corrupted . | . . . Allies Melted . | . . . Intel | -11 -10 -10 ------- Run | Yrd Mat Min Active Infowar (turns) 89 | 31 58 . Terrain 3 | 3 . . Seismic 86 | 28 58 . Robot Analysis Total 4 | . 4 . Derelict Logs Recovered 1 | . . 1 Drone Launches . | . . . Drone Recoveries . | . . . Exploration | -11 -10 -10 ------------- Run | Yrd Mat Min Turns Passed 2525 | 391 1126 1008 Spaces Moved 1175 | 169 601 405 Core 8 | 8 . . Treads 1167 | 161 601 405 Legs . | . . . Wheels . | . . . Hover . | . . . Flight . | . . . Fastest Speed 50 | 50 160 160 Average Speed 185 | 157 160 234 Slowest Speed 240 | 160 160 240 Overloaded Moves . | . . . Propulsion Burnouts . | . . . Robots Hopped . | . . . Potential Cave-ins . | . . . Cave-ins Triggered . | . . . Exploration Rate (%) 62 | 8 95 85 Regions Visited 2 Branch Regions 1 Pre-discovered Areas 2 | . 2 . Known Exits Taken . | . . . Unknown Exits Taken 2 | 1 1 . Scrap Searched 2 | . . 2 Spaces Dug . | . . . Terrain Destroyed 41 | . 41 . Melee . | . . . Projectile . | . . . AOE 41 | . 41 . Terrain Rammed . | . . . Walls Destroyed . | . . . Machines Disabled . | . . . Actions | -11 -10 -10 --------- Run | Yrd Mat Min Total 1330 | 220 675 435 Wait 2 | . 2 . Move 1173 | 168 600 405 Hop . | . . . Pick Up 13 | 2 6 5 Fast Attach 12 | 8 3 1 Attach 3 | . 3 . Detach 2 | 1 1 . Swap 3 | . . 3 Drop 3 | 1 . 2 Fire 111 | 40 58 13 Melee . | . . . Ram . | . . . Kick . | . . . Crush 8 | . 2 6 Escape Stasis . | . . . Rewire . | . . . Trap . | . . . Miscellaneous . | . . . Route ------- -11/Scrapyard -10/Materials (discovered 4 exits: [*Mat x3] / *Min) -10/Mines (discovered 3 exits: [*Mat x2] / [*Sub]) History --------- Turn | Location | Event 19 | -11/Scrapyard | Discovered new exit (range 15) 392 | -11/Scrapyard | Entered Materials 393 | -10/Materials | Build established: Mutant 759 | -10/Materials | Core integrity fell below 50% 840 | -10/Materials | Discovered new exit (range 13) 1060 | -10/Materials | Discovered new exit (range 8) 1173 | -10/Materials | Discovered new exit (range 10) 1181 | -10/Materials | Repaired Corrupted Lgt. Treads? 1333 | -10/Materials | Discovered new exit (range 5) 1518 | -10/Materials | Entered Mines 1534 | -10/Mines | Core integrity fell below 20% 1544 | -10/Mines | Discovered new exit (range 12) 1584 | -10/Mines | Received a Mining Laser from a helpful Derelict 1702 | -10/Mines | Discovered new exit (range 13) 1808 | -10/Mines | Found the Drone Emporium 1826 | -10/Mines | Found Prototype Device 2109 | -10/Mines | Found a Scrap Suit stashed away for nefarious purposes 2120 | -10/Mines | Found Scrap Suit 2205 | -10/Mines | Discovered new exit (range 6) 2518 | -10/Mines | Excavation squad dispatched 2518 | -10/Mines | A large section of the Mines collapsed 2526 | -10/Mines | Destroyed by as-60683 with Assembled Maul Last Messages --------------- "H4-X0R! I managed to smuggle one out! Take this to the hideout, the fools near Old Recycling think they can use this tech to beat 0b10 one day, and now we just have to find a way to safely deliver this to MAIN.C to get on their good side and convince them to let us into the system." 02120_ Acquired Scrap Suit. 02136_ Acquired 10 matter. 02140_ Slammed into T-07 Excavator. 02179_ Connecting with Terminal... 02195_ K-01 Serf cleans the Plasma Injector. 02205_ EXIT=FOUND 02277_ Slammed into T-07 Excavator. 02311_ Slammed into K-01 Serf. 02518_ ALERT: Suspicious cave-in, suspected derelict activity in mines. Dispatching escorted excavation squad. 02518_ Lgt. Nuclear Core destroyed. 02518_ System corrupted by crushing effect (+5). Map ----- +----------------------------------------------------+ | ####?## ### #?? | | # ? ##?? | | # #??# #######??? | | # ##### ### ##????????? | | #????????## ##?????????? | | #????###### ##??????????? | | #### #????# ###???????????? | | ???# #????# #### ##?????????????? | | ???# #????# #??# ##??????????????? | | ?### #????# #??# #???????????????? | | ## ##???# #??# ###????????####?? | | ##??# #??# #???????# ##? | | ##?# #??#### #??????? #? | | ### #?????# #??????# #? | | ## #???### #?????# #?? | | #??## ###### #??? | | #### #####??# #???? | | ???######??????## #???? | | ????????????????### #???? | | ??????????????????## ##???? | | ???????????????????## ###????? | | ????????????????????## ##??????? | | ?????????????????????## #???????? | | ?????????????????????## #???????? | | ????????????????????## ####???????? | | ????????????????????# #a@#???????? | | ????????????????????# #;##???????? | | ????????????????? ####???????? | | ?????????????? #????????? | | ??????????? #### ????????? | | ?????????????????# ????????? | | ?????????????????# ????????? | | ?????????????????# ???????? | | ?????????????????# #####???????? | | ?????????????????## #????????????? | | ??????????????????###?????????????? | | ??????????????????????????????????? | | ??????????????????????????????????? | | ??????????????????????????????????? | | | | | | | | | | | | | | | | | | | | | | | +----------------------------------------------------+ Best States ------------- Heat Dissipation 25 Energy Generation 14 Energy Capacity 250 Matter Stores 300 Matter Capacity 300 Sight Range 16 Terrain Scan Density 10 Core Shielding 20 Utility Shielding 33 Evasion (%) 40 Recoil Reduction 2 Item Schematics ----------------- None Robot Schematics ------------------ None Fabricated ------------ Nothing Repaired ---------- Lgt. Treads | 85% | -10/Materials | Corrupted Studied --------- None Alien Tech Used ----------------- None Achievements -------------- None Challenges ------------ None Game ------ Seed DamperVortexDissipator Manual? 0 Play Time 00:11:45 Cumulative 463.1 hours Start 2025.10.30 @ 00:07:56 End 2025.10.30 @ 00:20:09 Sessions 1 Manual Loads 0 Difficulty Rogue Special Mode None Game No. 247 Rogue 247 Adventurer 0 Explorer 0 Win Type - Total 21 Types 13/1/5/1/0/0/0/1/0/0 Lore% 93 Gallery% 85 Achievement% 77 Wizard Run 0 Options --------- Layout 2 ASCII 0 Keyboard 1 Movement Vi Keybinds 0 Fullscreen 1 Font 28/Terminus Map View 50x52 Zoom Use 0% Tactical HUD 1 Map Filters NONE Filters NONE Steam 1 RUN: 8b25aba3-6a72-4d34-893f-205646547c75